[Event "Masterklassen 2025"]
[Site "Uppsala, Sweden"]
[Date "2025.07.02"]
[Round "5.8"]
[White "Kingsley, Elias"]
[Black "Eklund, Joel"]
[Result "1/2-1/2"]
[TimeControl "90 min for 40 move + 30 min with an increment of 30 sec starting move 1"]
[WhiteFideId "1775006"]
[BlackFideId "1705288"]
[WhiteElo "2072"]
[BlackElo "2194"]

1. c4 {[%clk 01:30:56]} {[%emt 00:00:02]} e6 {[%clk 01:30:24]} {[%emt
00:00:37]} 2. Nf3 {[%clk 01:31:17]} {[%emt 00:00:10]} Nf6 {[%clk 01:29:49]}
{[%emt 00:01:04]} 3. d4 {[%clk 01:30:30]} {[%emt 00:01:16]} d5 {[%clk
01:29:53]} {[%emt 00:00:27]} 4. Nc3 {[%clk 01:30:39]} {[%emt 00:00:22]} a6
{[%clk 01:30:00]} {[%emt 00:00:22]} 5. c5 {[%clk 01:30:54]} {[%emt 00:00:15]}
b6 {[%clk 01:29:45]} {[%emt 00:00:46]} 6. cxb6 {[%clk 01:31:17]} {[%emt
00:00:05]} c5 {[%clk 01:29:35]} {[%emt 00:00:41]} 7. Bf4 {[%clk 01:31:18]}
{[%emt 00:00:29]} Bd6 {[%clk 01:29:28]} {[%emt 00:00:37]} 8. Bxd6 {[%clk
01:31:12]} {[%emt 00:00:36]} Qxd6 {[%clk 01:29:52]} {[%emt 00:00:06]} 9. dxc5
{[%clk 01:31:21]} {[%emt 00:00:21]} Qxc5 {[%clk 01:30:12]} {[%emt 00:00:11]} 10.
Qd4 {[%clk 01:31:41]} {[%emt 00:00:10]} Qd6 {[%clk 01:28:40]} {[%emt 00:02:00]}
11. e4 {[%clk 01:07:06]} {[%emt 00:25:06]} Nc6 {[%clk 01:28:17]} {[%emt
00:00:54]} 12. Qd2 {[%clk 01:02:32]} {[%emt 00:05:03]} d4 {[%clk 01:28:11]}
{[%emt 00:00:36]} 13. Bb5 {[%clk 00:54:56]} {[%emt 00:08:06]} axb5 {[%clk
01:09:13]} {[%emt 00:19:29]} 14. Nxb5 {[%clk 00:55:08]} {[%emt 00:00:17]} Qb4
{[%clk 01:04:23]} {[%emt 00:05:20]} 15. Nc7+ {[%clk 00:49:47]} {[%emt
00:05:52]} Ke7 {[%clk 01:04:42]} {[%emt 00:00:11]} 16. Nxa8 {[%clk 00:46:15]}
{[%emt 00:04:01]} Bd7 {[%clk 00:59:16]} {[%emt 00:05:57]} 17. Nc7 {[%clk
00:23:32]} {[%emt 00:23:13]} Qxb6 {[%clk 00:59:26]} {[%emt 00:00:20]} 18. O-O
{[%clk 00:20:22]} {[%emt 00:03:39]} Qxc7 {[%clk 00:58:45]} {[%emt 00:01:12]} 19.
Qg5 {[%clk 00:19:53]} {[%emt 00:00:57]} e5 {[%clk 00:55:35]} {[%emt 00:03:41]}
20. Rfc1 {[%clk 00:15:31]} {[%emt 00:04:52]} Qd6 {[%clk 00:50:30]} {[%emt
00:05:35]} 21. a3 {[%clk 00:10:17]} Rb8 {[%clk 00:37:30]} {[%emt 00:19:15]} 22.
b4 {[%emt 00:00:24]} Kf8 {[%clk 00:37:55]} 23. Nd2 {[%clk 00:10:40]} {[%emt
00:00:17]} h6 {[%clk 00:37:12]} {[%emt 00:01:14]} 24. Qg3 {[%clk 00:10:08]}
{[%emt 00:01:01]} Nh5 {[%clk 00:35:13]} {[%emt 00:02:29]} 25. Qf3 {[%emt
00:05:34]} Qg6 {[%clk 00:32:06]} {[%emt 00:00:06]} 26. Rc5 {[%emt 00:09:57]}
Nf4 {[%emt 00:01:19]} 27. Kh1 {[%clk 00:04:58]} {[%emt 00:02:12]} d3 {[%clk
00:20:00]} {[%emt 00:04:16]} 28. Qg3 {[%emt 00:00:52]} Qd6 {[%clk 00:19:07]}
{[%emt 00:01:09]} 29. Qe3 {[%emt 00:11:15]} Be6 {[%clk 00:08:51]} {[%emt
00:00:07]} 30. g3 {[%clk 00:04:30]} {[%emt 00:00:44]} Nh3 {[%clk 00:09:10]} 31.
Kg2 {[%clk 00:03:46]} {[%emt 00:01:24]} Ne7 {[%emt 00:04:04]} 32. Nc4 {[%clk
00:02:41]} {[%emt 00:00:15]} Bxc4 {[%clk 00:07:22]} {[%emt 00:00:05]} 33. Rxc4
{[%clk 00:02:01]} {[%emt 00:05:23]} Ng6 {[%clk 00:02:37]} 34. Rd1 {[%clk
00:01:40]} {[%emt 00:01:32]} Qe6 {[%clk 00:02:32]} 35. Rc3 {[%clk 00:01:40]}
{[%emt 00:01:25]} Qg4 {[%clk 00:02:35]} 36. Rf1 {[%clk 00:00:42]} {[%emt
00:01:55]} Rd8 {[%clk 00:00:41]} 37. f3 {[%clk 00:00:40]} {[%emt 00:02:56]}
Nh4+ {[%clk 00:00:42]} 38. Kh1 {[%clk 00:00:40]} Nxf3 {[%clk 00:00:42]} 39.
Rxd3 {[%clk 00:00:35]} {[%emt 00:01:55]} Rxd3 {[%clk 00:00:45]} 40. Qxd3 {[%clk
00:01:04]} {[%emt 00:00:38]} Nd4 {[%clk 00:01:02]} 41. a4 {[%clk 00:29:29]}
{[%emt 00:02:17]} Qd7 {[%clk 00:24:28]} 42. b5 {[%clk 00:25:32]} {[%emt
00:11:31]} Ng5 {[%clk 00:22:03]} {[%emt 00:02:55]} 43. h4 {[%clk 00:17:00]}
{[%emt 00:08:59]} Nxe4 {[%clk 00:19:29]} {[%emt 00:03:07]} 44. Qxe4 {[%clk
00:14:48]} {[%emt 00:02:42]} Qh3+ {[%clk 00:19:51]} {[%emt 00:00:08]} 45. Kg1
{[%clk 00:15:14]} {[%emt 00:00:04]} Qxg3+ {[%clk 00:20:03]} {[%emt 00:00:17]}
46. Kh1 {[%clk 00:13:46]} {[%emt 00:01:58]} Qh3+ {[%clk 00:18:55]} {[%emt
00:01:39]} 47. Kg1 {[%clk 00:14:09]} {[%emt 00:00:07]} Qg3+ {[%clk 00:19:21]}
{[%emt 00:00:04]} 48. Kh1 {[%clk 00:14:32]} {[%emt 00:00:07]} Qh3+ {[%clk
00:19:46]} {[%emt 00:00:05]} 49. Kg1 {[%clk 00:14:58]} {[%emt 00:00:04]}
1/2-1/2

[Event "Masterklassen 2025"]
[Site "Uppsala, Sweden"]
[Date "2025.07.02"]
[Round "5.9"]
[White "Ostensson, Julia"]
[Black "Tornberg, Carlos"]
[Result "1-0"]
[TimeControl "90 min for 40 move + 30 min with an increment of 30 sec starting move 1"]
[WhiteFideId "1747703"]
[BlackFideId "1733478"]
[WhiteElo "2005"]
[BlackElo "2233"]

1. e4 {[%clk 01:30:57]} {[%emt 00:00:02]} e5 {[%clk 01:30:36]} {[%emt
00:00:24]} 2. Nf3 {[%clk 01:31:23]} {[%emt 00:00:05]} Nc6 {[%clk 01:31:02]}
{[%emt 00:00:04]} 3. Bb5 {[%clk 01:31:49]} {[%emt 00:00:04]} a6 {[%clk
01:31:07]} {[%emt 00:00:25]} 4. Ba4 {[%clk 01:32:14]} {[%emt 00:00:05]} d6
{[%clk 01:30:38]} {[%emt 00:00:58]} 5. O-O {[%clk 01:32:34]} {[%emt 00:00:11]}
Bd7 {[%clk 01:26:07]} {[%emt 00:05:01]} 6. c3 {[%clk 01:32:29]} {[%emt
00:00:34]} g6 {[%clk 01:23:32]} {[%emt 00:03:05]} 7. d4 {[%clk 01:32:33]}
{[%emt 00:00:27]} Bg7 {[%clk 01:22:54]} {[%emt 00:01:08]} 8. Re1 {[%clk
01:20:28]} {[%emt 00:12:35]} Nf6 {[%clk 01:18:34]} {[%emt 00:04:50]} 9. dxe5
{[%clk 01:14:37]} {[%emt 00:06:21]} Nxe5 {[%clk 01:10:50]} {[%emt 00:08:14]} 10.
Nxe5 {[%clk 01:14:55]} {[%emt 00:00:12]} dxe5 {[%clk 01:10:56]} {[%emt
00:00:24]} 11. Bxd7+ {[%clk 01:08:20]} {[%emt 00:07:05]} Nxd7 {[%clk 01:11:14]}
{[%emt 00:00:12]} 12. Be3 {[%clk 01:06:23]} {[%emt 00:02:27]} O-O {[%clk
01:09:41]} {[%emt 00:02:03]} 13. Qd5 {[%clk 01:01:18]} {[%emt 00:05:35]} Qc8
{[%clk 01:06:00]} {[%emt 00:04:11]} 14. Nd2 {[%clk 01:00:19]} {[%emt 00:01:28]}
Re8 {[%clk 01:02:24]} {[%emt 00:04:06]} 15. Rad1 {[%clk 00:57:32]} {[%emt
00:03:18]} Nf6 {[%clk 00:57:40]} {[%emt 00:05:13]} 16. Qb3 {[%clk 00:56:03]}
{[%emt 00:01:59]} Bf8 {[%clk 00:54:18]} {[%emt 00:03:52]} 17. f3 {[%clk
00:51:16]} {[%emt 00:05:17]} Re6 {[%clk 00:51:03]} {[%emt 00:03:45]} 18. c4
{[%clk 00:41:55]} {[%emt 00:09:52]} Nh5 {[%clk 00:48:56]} {[%emt 00:02:37]} 19.
c5 {[%clk 00:37:30]} {[%emt 00:04:55]} g5 {[%clk 00:40:55]} {[%emt 00:08:31]}
20. Nc4 {[%clk 00:34:34]} {[%emt 00:03:25]} Nf4 {[%clk 00:40:57]} {[%emt
00:00:29]} 21. g3 {[%clk 00:33:45]} {[%emt 00:01:19]} Nh3+ {[%clk 00:35:34]}
{[%emt 00:05:52]} 22. Kg2 {[%clk 00:33:55]} {[%emt 00:00:21]} Re8 {[%clk
00:29:32]} {[%emt 00:06:32]} 23. Qd3 {[%clk 00:28:36]} {[%emt 00:05:49]} Qe6
{[%clk 00:27:52]} {[%emt 00:02:10]} 24. Qd5 {[%clk 00:28:39]} {[%emt 00:00:27]}
Qh6 {[%clk 00:26:35]} {[%emt 00:01:46]} 25. Nxe5 {[%clk 00:26:56]} {[%emt
00:02:13]} Nf4+ {[%clk 00:16:06]} {[%emt 00:11:00]} 26. gxf4 {[%clk 00:26:58]}
{[%emt 00:00:28]} gxf4 {[%clk 00:16:34]} {[%emt 00:00:01]} 27. Qxf7+ {[%clk
00:25:17]} {[%emt 00:02:12]} Kh8 {[%clk 00:17:02]} {[%emt 00:00:01]} 28. Ng4
{[%clk 00:24:10]} {[%emt 00:01:37]} 1-0

[Event "Masterklassen 2025"]
[Site "Uppsala, Sweden"]
[Date "2025.07.02"]
[Round "5.10"]
[White "Willstedt, Lukas"]
[Black "Karde, Douglas"]
[Result "1/2-1/2"]
[TimeControl "90 min for 40 move + 30 min with an increment of 30 sec starting move 1"]
[WhiteFideId "1751913"]
[BlackFideId "1761498"]
[WhiteElo "2055"]
[BlackElo "2064"]

1. d4 {[%clk 01:30:55]} {[%emt 00:00:04]} Nf6 {[%clk 01:30:57]} {[%emt
00:00:04]} 2. Bf4 {[%clk 01:31:19]} {[%emt 00:00:06]} g6 {[%clk 01:31:23]}
{[%emt 00:00:04]} 3. Nd2 {[%clk 01:31:44]} {[%emt 00:00:05]} d5 {[%clk
01:31:45]} {[%emt 00:00:08]} 4. e3 {[%clk 01:32:09]} {[%emt 00:00:05]} Bg7
{[%clk 01:32:06]} {[%emt 00:00:09]} 5. h3 {[%clk 01:32:34]} {[%emt 00:00:06]}
O-O {[%clk 01:32:31]} {[%emt 00:00:05]} 6. Ngf3 {[%emt 00:01:58]} c5 {[%clk
01:31:08]} 7. c3 {[%clk 01:33:24]} {[%emt 00:00:04]} cxd4 {[%clk 01:29:41]}
{[%emt 00:01:58]} 8. exd4 {[%clk 01:30:53]} {[%emt 00:03:00]} Nc6 {[%clk
01:30:04]} {[%emt 00:00:08]} 9. Be2 {[%clk 01:29:43]} {[%emt 00:01:39]} Qb6
{[%clk 01:25:36]} {[%emt 00:04:58]} 10. Qb3 {[%clk 01:28:54]} {[%emt 00:01:19]}
Qxb3 {[%clk 01:24:27]} {[%emt 00:01:40]} 11. axb3 {[%clk 01:29:00]} {[%emt
00:00:24]} Bf5 {[%clk 01:13:18]} {[%emt 00:11:38]} 12. Ne5 {[%clk 01:25:21]}
{[%emt 00:04:09]} Nd7 {[%clk 01:09:53]} {[%emt 00:03:55]} 13. Nxd7 {[%clk
01:17:51]} {[%emt 00:08:01]} Bxd7 {[%clk 01:10:14]} {[%emt 00:00:08]} 14. O-O
{[%clk 01:16:04]} {[%emt 00:02:17]} f6 {[%clk 01:05:06]} {[%emt 00:05:39]} 15.
Bf3 {[%clk 01:12:26]} {[%emt 00:04:08]} Be6 {[%clk 01:04:43]} {[%emt 00:00:52]}
16. b4 {[%clk 01:09:40]} {[%emt 00:03:17]} a6 {[%clk 01:05:07]} {[%emt
00:00:07]} 17. Nb3 {[%clk 01:06:20]} {[%emt 00:03:48]} Bf7 {[%clk 01:05:32]}
{[%emt 00:00:05]} 18. Nc5 {[%clk 01:04:59]} {[%emt 00:01:52]} e5 {[%clk
01:05:09]} {[%emt 00:00:53]} 19. dxe5 {[%clk 01:05:05]} {[%emt 00:00:24]} fxe5
{[%clk 01:05:29]} {[%emt 00:00:10]} 20. Bg3 {[%clk 01:05:03]} {[%emt 00:00:31]}
e4 {[%clk 01:05:01]} {[%emt 00:00:58]} 21. Bg4 {[%clk 01:05:01]} {[%emt
00:00:32]} d4 {[%clk 00:54:49]} {[%emt 00:10:43]} 22. Ra3 {[%clk 01:01:06]}
{[%emt 00:04:25]} h5 {[%clk 00:44:43]} {[%emt 00:10:36]} 23. Bd7 {[%clk
00:56:55]} {[%emt 00:04:41]} Bd5 {[%clk 00:33:15]} {[%emt 00:11:58]} 24. Be6+
{[%clk 00:48:18]} {[%emt 00:09:07]} Bxe6 {[%clk 00:33:35]} {[%emt 00:00:09]} 25.
Nxe6 {[%clk 00:48:46]} {[%emt 00:00:02]} Rf5 {[%clk 00:29:51]} {[%emt
00:04:14]} 26. Nxg7 {[%clk 00:47:24]} {[%emt 00:01:53]} Kxg7 {[%clk 00:30:19]}
27. cxd4 {[%clk 00:47:11]} {[%emt 00:00:45]} Rd8 {[%clk 00:30:00]} {[%emt
00:00:48]} 28. Rd1 {[%clk 00:40:03]} {[%emt 00:07:38]} Rfd5 {[%clk 00:29:40]}
{[%emt 00:00:50]} 29. Rc1 {[%clk 00:37:11]} {[%emt 00:03:22]} Rxd4 {[%clk
00:24:22]} {[%emt 00:05:49]} 30. b5 {[%clk 00:35:49]} {[%emt 00:01:52]} Rd1+
{[%clk 00:24:27]} {[%emt 00:00:25]} 31. Rxd1 {[%clk 00:36:06]} {[%emt
00:00:12]} Rxd1+ {[%clk 00:24:52]} {[%emt 00:00:06]} 32. Kh2 {[%clk 00:36:34]}
{[%emt 00:00:02]} axb5 {[%clk 00:25:11]} {[%emt 00:00:10]} 33. Ra8 {[%clk
00:36:06]} {[%emt 00:00:57]} Kf7 {[%clk 00:21:53]} {[%emt 00:03:49]} 34. Rc8
{[%clk 00:35:59]} {[%emt 00:00:37]} Rb1 {[%clk 00:17:44]} {[%emt 00:04:40]} 35.
Rc7+ {[%clk 00:36:15]} {[%emt 00:00:14]} Ke6 {[%clk 00:17:45]} {[%emt
00:00:28]} 36. Rxb7 {[%clk 00:32:44]} {[%emt 00:04:02]} Rxb2 {[%clk 00:18:13]}
{[%emt 00:00:01]} 37. Rg7 {[%clk 00:33:03]} {[%emt 00:00:11]} Kf6 {[%clk
00:18:01]} {[%emt 00:00:43]} 38. Rb7 {[%clk 00:32:06]} {[%emt 00:01:26]} b4
{[%clk 00:17:15]} {[%emt 00:01:16]} 39. Rb6 {[%clk 00:31:52]} {[%emt 00:00:44]}
Rc2 {[%clk 00:17:37]} {[%emt 00:00:08]} 40. Bd6 {[%clk 00:32:11]} {[%emt
00:00:10]} Kf5 {[%clk 00:15:18]} {[%emt 00:02:50]} 41. Rb5+ {[%clk 00:27:37]}
{[%emt 00:05:05]} Ke6 {[%clk 00:15:33]} {[%emt 00:00:15]} 42. Bxb4 {[%clk
00:27:51]} {[%emt 00:00:16]} Rxf2 {[%clk 00:11:47]} {[%emt 00:04:15]} 43. Be1
{[%clk 00:22:22]} {[%emt 00:05:59]} Rf5 {[%clk 00:05:13]} {[%emt 00:07:05]} 44.
Rb6 {[%clk 00:20:17]} {[%emt 00:02:35]} Kd5 {[%clk 00:05:15]} {[%emt 00:00:27]}
45. g4 {[%clk 00:20:20]} {[%emt 00:00:27]} hxg4 {[%clk 00:04:32]} {[%emt
00:01:14]} 46. hxg4 {[%clk 00:20:48]} {[%emt 00:00:01]} Rf1 {[%clk 00:03:58]}
{[%emt 00:01:04]} 47. Bg3 {[%clk 00:20:07]} {[%emt 00:01:11]} e3 {[%clk
00:28:26]} {[%emt 00:06:03]} 48. Rb5+ {[%clk 00:48:30]} {[%emt 00:02:07]} Ke4
{[%clk 00:26:49]} {[%emt 00:02:07]} 49. Rg5 {[%clk 00:47:48]} {[%emt 00:01:11]}
Rf6 {[%clk 00:13:44]} {[%emt 00:13:35]} 50. Kg2 {[%clk 00:45:22]} {[%emt
00:02:56]} Re6 {[%clk 00:13:49]} {[%emt 00:00:26]} 51. Rc5 {[%clk 00:42:57]}
{[%emt 00:02:54]} Nd4 {[%clk 00:14:08]} {[%emt 00:00:11]} 52. Rc8 {[%clk
00:39:54]} {[%emt 00:03:33]} Kd3 {[%clk 00:14:21]} {[%emt 00:00:18]} 53. Rd8
{[%clk 00:39:17]} {[%emt 00:01:07]} Re4 {[%clk 00:08:53]} {[%emt 00:05:58]} 54.
Kh3 {[%clk 00:39:13]} {[%emt 00:00:33]} e2 {[%clk 00:08:08]} {[%emt 00:01:16]}
55. Be1 {[%clk 00:32:16]} {[%emt 00:07:26]} Ke3 {[%clk 00:08:12]} {[%emt
00:00:27]} 56. Kg3 {[%clk 00:32:28]} {[%emt 00:00:15]} Kd3 {[%clk 00:07:58]}
{[%emt 00:00:46]} 57. Rd6 {[%clk 00:31:16]} {[%emt 00:01:42]} Re3 {[%clk
00:07:30]} {[%emt 00:00:58]} 58. Kg2 {[%clk 00:30:34]} {[%emt 00:01:10]} Re6
{[%clk 00:07:17]} {[%emt 00:00:46]} 59. Rd8 {[%clk 00:29:01]} {[%emt 00:02:02]}
Kc4 {[%clk 00:04:11]} {[%emt 00:03:36]} 60. Rc8+ {[%clk 00:28:35]} {[%emt
00:00:57]} Kb3 {[%clk 00:04:02]} {[%emt 00:00:39]} 61. Rc3+ {[%clk 00:28:48]}
{[%emt 00:00:16]} Kb2 {[%clk 00:04:25]} {[%emt 00:00:08]} 62. Rd3 {[%clk
00:26:58]} {[%emt 00:02:18]} Nc2 {[%clk 00:03:17]} {[%emt 00:01:39]} 63. Kf2
{[%clk 00:27:11]} {[%emt 00:00:16]} Rf6 {[%clk 00:03:01]} {[%emt 00:00:48]} 64.
Rf3 {[%clk 00:25:39]} {[%emt 00:02:01]} Rxf3 {[%clk 00:02:15]} {[%emt
00:01:16]} 65. Kxf3 {[%clk 00:26:08]} {[%emt 00:00:01]} Nxe1+ {[%clk 00:02:37]}
{[%emt 00:00:09]} 66. Kxe2 {[%clk 00:26:32]} {[%emt 00:00:06]} Ng2 {[%clk
00:02:18]} {[%emt 00:00:48]} 67. Kf3 {[%clk 00:26:58]} {[%emt 00:00:04]} Ne1+
{[%clk 00:01:22]} {[%emt 00:01:27]} 68. Kf4 {[%clk 00:27:12]} {[%emt 00:00:12]}
Nd3+ {[%clk 00:01:04]} {[%emt 00:00:51]} 69. Kg5 {[%emt 00:00:16]} 1/2-1/2

[Event "Masterklassen 2025"]
[Site "Uppsala, Sweden"]
[Date "2025.07.02"]
[Round "5.11"]
[White "Soppela, Toni"]
[Black "Lind, Jan-Olov"]
[Result "1-0"]
[TimeControl "90 min for 40 move + 30 min with an increment of 30 sec starting move 1"]
[WhiteFideId "1766163"]
[BlackFideId "1701193"]
[WhiteElo "2090"]
[BlackElo "2057"]

1. d4 {[%clk 01:29:21]} {[%emt 00:01:37]} Nf6 {[%clk 01:30:31]} {[%emt
00:00:30]} 2. c4 {[%clk 01:29:38]} {[%emt 00:00:12]} c5 {[%clk 01:30:36]}
{[%emt 00:00:25]} 3. d5 {[%clk 01:28:26]} {[%emt 00:01:42]} e5 {[%clk
01:30:31]} {[%emt 00:00:35]} 4. Nc3 {[%clk 01:28:24]} {[%emt 00:00:33]} d6
{[%clk 01:30:51]} {[%emt 00:00:10]} 5. e4 {[%clk 01:28:23]} {[%emt 00:00:31]}
Be7 {[%clk 01:31:11]} {[%emt 00:00:10]} 6. h3 {[%clk 01:26:10]} {[%emt
00:02:43]} a6 {[%clk 01:24:48]} {[%emt 00:06:53]} 7. Be3 {[%clk 01:23:19]}
{[%emt 00:03:19]} Nbd7 {[%clk 01:22:51]} {[%emt 00:02:28]} 8. Be2 {[%clk
01:15:00]} {[%emt 00:08:48]} O-O {[%clk 01:20:41]} {[%emt 00:02:42]} 9. Nf3
{[%clk 01:12:32]} {[%emt 00:02:58]} Qa5 {[%clk 00:53:37]} {[%emt 00:27:34]} 10.
Nd2 {[%clk 01:04:51]} {[%emt 00:08:09]} Rb8 {[%clk 00:49:01]} {[%emt 00:05:08]}
11. a4 {[%clk 01:00:27]} {[%emt 00:04:54]} Qd8 {[%clk 00:46:45]} {[%emt
00:02:46]} 12. Nf1 {[%clk 00:56:18]} {[%emt 00:04:39]} Ne8 {[%clk 00:46:12]}
{[%emt 00:01:03]} 13. Qd2 {[%clk 00:55:56]} {[%emt 00:00:51]} g6 {[%clk
00:42:45]} {[%emt 00:03:58]} 14. g4 {[%clk 00:55:34]} {[%emt 00:00:52]} Ng7
{[%clk 00:41:06]} {[%emt 00:02:09]} 15. Ng3 {[%clk 00:54:43]} {[%emt 00:01:21]}
Nb6 {[%clk 00:38:44]} {[%emt 00:02:51]} 16. Bh6 {[%clk 00:49:58]} {[%emt
00:05:15]} Bh4 {[%clk 00:31:05]} {[%emt 00:08:10]} 17. Rg1 {[%clk 00:39:25]}
{[%emt 00:11:01]} f6 {[%clk 00:29:19]} {[%emt 00:02:18]} 18. Be3 {[%clk
00:35:21]} {[%emt 00:04:34]} Kh8 {[%clk 00:28:40]} {[%emt 00:01:09]} 19. b3
{[%clk 00:30:23]} {[%emt 00:05:29]} Bd7 {[%clk 00:27:09]} {[%emt 00:02:00]} 20.
Bd3 {[%clk 00:27:00]} {[%emt 00:03:53]} Qe7 {[%clk 00:24:21]} {[%emt 00:03:18]}
21. O-O-O {[%clk 00:24:59]} {[%emt 00:02:29]} Na8 {[%clk 00:24:22]} {[%emt
00:00:31]} 22. Qe2 {[%clk 00:21:12]} {[%emt 00:04:16]} Nc7 {[%clk 00:23:29]}
{[%emt 00:01:24]} 23. f4 {[%clk 00:18:46]} {[%emt 00:02:56]} Bxg3 {[%clk
00:10:37]} {[%emt 00:13:22]} 24. Rxg3 {[%clk 00:18:33]} {[%emt 00:00:42]} exf4
{[%clk 00:10:57]} {[%emt 00:00:09]} 25. Bxf4 {[%clk 00:18:35]} {[%emt
00:00:29]} g5 {[%clk 00:11:19]} {[%emt 00:00:09]} 26. Bd2 {[%clk 00:17:26]}
{[%emt 00:01:38]} Qe5 {[%clk 00:11:37]} {[%emt 00:00:13]} 27. Rf3 {[%clk
00:16:30]} {[%emt 00:01:26]} b5 {[%clk 00:09:48]} {[%emt 00:02:19]} 28. axb5
{[%clk 00:07:01]} {[%emt 00:09:59]} axb5 {[%clk 00:10:07]} {[%emt 00:00:12]} 29.
Nb1 {[%clk 00:05:23]} {[%emt 00:02:07]} bxc4 {[%clk 00:07:24]} {[%emt
00:03:13]} 30. Bxc4 {[%clk 00:05:41]} {[%emt 00:00:11]} Nb5 {[%clk 00:06:13]}
{[%emt 00:01:42]} 31. Bxb5 {[%clk 00:04:25]} {[%emt 00:01:46]} Bxb5 {[%clk
00:06:21]} {[%emt 00:00:22]} 32. Qe3 {[%clk 00:04:04]} {[%emt 00:00:51]} Rbe8
{[%clk 00:03:24]} {[%emt 00:03:27]} 33. Re1 {[%clk 00:03:38]} {[%emt 00:00:56]}
Qd4 {[%clk 00:03:06]} {[%emt 00:00:48]} 34. Bc3 {[%clk 00:03:09]} {[%emt
00:00:59]} Qxe3+ {[%clk 00:03:22]} {[%emt 00:00:15]} 35. Rexe3 {[%clk
00:03:16]} {[%emt 00:00:22]} Kg8 {[%clk 00:01:11]} {[%emt 00:02:40]} 36. Nd2
{[%clk 00:02:55]} {[%emt 00:00:52]} Re7 {[%clk 00:01:04]} {[%emt 00:00:37]} 37.
Bxf6 {[%clk 00:02:51]} {[%emt 00:00:34]} Rb7 {[%clk 00:00:58]} {[%emt
00:00:37]} 38. Bxg5 {[%clk 00:02:54]} {[%emt 00:00:26]} Ra8 {[%clk 00:00:56]}
{[%emt 00:00:31]} 39. Bf6 {[%clk 00:02:35]} {[%emt 00:00:49]} Ra2 {[%clk
00:00:55]} {[%emt 00:00:32]} 40. Bb2 {[%clk 00:02:11]} {[%emt 00:00:54]} c4
{[%clk 00:00:47]} {[%emt 00:00:37]} 41. Rc3 {[%clk 00:01:34]} {[%emt 00:01:07]}
cxb3 {[%clk 00:28:56]} {[%emt 00:02:22]} 42. Rxb3 {[%clk 00:30:09]} {[%emt
00:01:54]} Ra4 {[%clk 00:26:12]} {[%emt 00:03:15]} 43. Rf6 {[%clk 00:26:10]}
{[%emt 00:04:28]} Ne8 {[%clk 00:25:10]} {[%emt 00:01:32]} 44. Rf5 {[%clk
00:26:01]} {[%emt 00:00:39]} Rc7+ {[%clk 00:24:34]} {[%emt 00:01:06]} 45. Kb1
{[%clk 00:23:46]} {[%emt 00:02:45]} Be2 {[%clk 00:24:04]} {[%emt 00:01:01]} 46.
Re3 {[%clk 00:18:00]} {[%emt 00:06:16]} Bd1 {[%clk 00:16:35]} {[%emt 00:07:59]}
47. Rc3 {[%clk 00:17:41]} {[%emt 00:00:49]} Rxc3 {[%clk 00:13:50]} {[%emt
00:03:15]} 48. Bxc3 {[%clk 00:18:03]} {[%emt 00:00:08]} Be2 {[%clk 00:14:00]}
{[%emt 00:00:19]} 49. Kc2 {[%clk 00:16:22]} {[%emt 00:02:11]} Ra2+ {[%clk
00:12:04]} {[%emt 00:02:27]} 50. Kb3 {[%clk 00:16:04]} {[%emt 00:00:48]} Ra8
{[%clk 00:12:17]} {[%emt 00:00:17]} 51. Nf3 {[%clk 00:15:48]} {[%emt 00:00:45]}
Bd1+ {[%clk 00:10:43]} {[%emt 00:02:04]} 52. Kb2 {[%clk 00:14:01]} {[%emt
00:02:18]} Ra4 {[%clk 00:09:10]} {[%emt 00:02:03]} 53. Ng5 {[%clk 00:05:39]}
{[%emt 00:08:52]} h6 {[%clk 00:06:08]} {[%emt 00:03:31]} 54. Ne6 {[%clk
00:05:20]} {[%emt 00:00:49]} Ra8 {[%clk 00:06:01]} {[%emt 00:00:37]} 55. Rf8+
{[%clk 00:04:47]} {[%emt 00:01:04]} Kh7 {[%clk 00:06:23]} {[%emt 00:00:08]} 56.
Nf4 {[%clk 00:04:44]} {[%emt 00:00:33]} Nc7 {[%clk 00:04:18]} {[%emt 00:02:35]}
57. Rf7+ {[%clk 00:05:05]} {[%emt 00:00:09]} 1-0